[Event "*** Titled Tuesday 3|2 Blitz"]
[Site "Chess.com"]
[Date "2015.09.01"]
[Round "9"]
[White "Badouuu"]
[Black "PowerThinking2650"]
[Result "1-0"]
[WhiteElo "1917"]
[BlackElo "2076"]
[TimeControl "180+2"]
[EndTime "12:50:31 PDT"]
[Termination "Badouuu won on time"]

1. e4 {[%clk 0:02:59.4]} 1... e5 {[%clk 0:02:59.4]} 2. Nf3 {[%clk 0:02:59.8]}
2... Nc6 {[%clk 0:03:00.8]} 3. Bb5 {[%clk 0:03:00.1]} 3... a6 {[%clk 0:03:01.2]}
4. Ba4 {[%clk 0:02:59.5]} 4... Nf6 {[%clk 0:03:00.6]} 5. O-O {[%clk 0:02:59]}
5... b5 {[%clk 0:03:00.5]} 6. Bb3 {[%clk 0:02:58.3]} 6... Be7 {[%clk 0:02:58.5]}
7. Re1 {[%clk 0:02:53.7]} 7... d6 {[%clk 0:02:58.8]} 8. c3 {[%clk 0:02:52.6]}
8... O-O {[%clk 0:02:58.8]} 9. d3 {[%clk 0:02:51.8]} 9... Na5 {[%clk 0:02:58.3]}
10. Bc2 {[%clk 0:02:52]} 10... c5 {[%clk 0:02:59.8]} 11. Nbd2 {[%clk 0:02:52.6]}
11... Nc6 {[%clk 0:03:00.1]} 12. a4 {[%clk 0:02:50.9]} 12... Bb7 {[%clk
0:02:58.6]} 13. Nf1 {[%clk 0:02:44.5]} 13... Re8 {[%clk 0:02:58]} 14. d4 {[%clk
0:02:33.4]} 14... cxd4 {[%clk 0:02:43.7]} 15. cxd4 {[%clk 0:02:33.7]} 15... exd4
{[%clk 0:02:39]} 16. Nxd4 {[%clk 0:02:33.1]} 16... Nxd4 {[%clk 0:02:38.9]} 17.
Qxd4 {[%clk 0:02:34.5]} 17... Rc8 {[%clk 0:02:39.1]} 18. Bb3 {[%clk 0:02:29.6]}
18... d5 {[%clk 0:02:32.8]} 19. e5 {[%clk 0:02:11.4]} 19... Ne4 {[%clk
0:02:32.3]} 20. Be3 {[%clk 0:01:38.1]} 20... Bc5 {[%clk 0:02:31.7]} 21. Qd3
{[%clk 0:01:32.1]} 21... Rxe5 {[%clk 0:02:15.4]} 22. axb5 {[%clk 0:01:28.8]}
22... axb5 {[%clk 0:02:12.4]} 23. Qxb5 {[%clk 0:01:24.6]} 23... Bc6 {[%clk
0:02:07.4]} 24. Qd3 {[%clk 0:01:16.4]} 24... d4 {[%clk 0:01:25.7]} 25. Bf4
{[%clk 0:01:08.4]} 25... Re8 {[%clk 0:01:23.4]} 26. Rac1 {[%clk 0:00:37.4]}
26... Qb6 {[%clk 0:01:16.6]} 27. Nd2 {[%clk 0:00:27.8]} 27... Nxd2 {[%clk
0:01:09.8]} 28. Bxd2 {[%clk 0:00:28.5]} 28... Rxe1+ {[%clk 0:00:18.9]} 29. Rxe1
{[%clk 0:00:27.2]} 29... Qb7 {[%clk 0:00:17.3]} 30. Bc4 {[%clk 0:00:17.3]} 30...
Bd5 {[%clk 0:00:16.5]} 31. Ba6 {[%clk 0:00:17]} 31... Qb8 {[%clk 0:00:13.9]} 32.
Bxc8 {[%clk 0:00:17.6]} 32... Qxc8 {[%clk 0:00:15.2]} 33. Qb5 {[%clk 0:00:19.1]}
33... Qf8 {[%clk 0:00:05.5]} 34. Re8 {[%clk 0:00:18.3]} 1-0

[Event "*** Titled Tuesday 3|2 Blitz"]
[Site "Chess.com"]
[Date "2015.09.01"]
[Round "9"]
[White "AnthonyWirig"]
[Black "Keaton87"]
[Result "1-0"]
[WhiteElo "2536"]
[BlackElo "2414"]
[TimeControl "180+2"]
[EndTime "12:51:09 PDT"]
[Termination "AnthonyWirig won by resignation"]

1. e4 {[%clk 0:03:01.9]} 1... c5 {[%clk 0:03:00.6]} 2. d4 {[%clk 0:03:02.6]}
2... cxd4 {[%clk 0:03:01.5]} 3. c3 {[%clk 0:03:04.3]} 3... Nf6 {[%clk
0:03:02.2]} 4. e5 {[%clk 0:03:05.4]} 4... Nd5 {[%clk 0:03:03.7]} 5. Qxd4 {[%clk
0:03:07.1]} 5... e6 {[%clk 0:03:04.4]} 6. Nf3 {[%clk 0:03:07.7]} 6... Nc6 {[%clk
0:03:05.7]} 7. Qe4 {[%clk 0:03:09.3]} 7... f5 {[%clk 0:03:06.7]} 8. Qe2 {[%clk
0:03:10.5]} 8... b5 {[%clk 0:03:08]} 9. g3 {[%clk 0:03:11.7]} 9... Be7 {[%clk
0:03:07]} 10. Bg2 {[%clk 0:03:12.5]} 10... O-O {[%clk 0:03:08.2]} 11. O-O {[%clk
0:03:13.3]} 11... b4 {[%clk 0:03:09.2]} 12. c4 {[%clk 0:03:14.2]} 12... Nc7
{[%clk 0:03:10.4]} 13. Rd1 {[%clk 0:03:13.5]} 13... Na6 {[%clk 0:03:10.4]} 14.
Nbd2 {[%clk 0:03:11.3]} 14... Qc7 {[%clk 0:03:11]} 15. Nb3 {[%clk 0:03:10.6]}
15... Nc5 {[%clk 0:03:11.7]} 16. Nxc5 {[%clk 0:03:10.8]} 16... Bxc5 {[%clk
0:03:13.6]} 17. h4 {[%clk 0:03:12.1]} 17... Bb7 {[%clk 0:03:13.9]} 18. Bf4
{[%clk 0:03:13]} 18... h6 {[%clk 0:03:05.4]} 19. Rd2 {[%clk 0:03:14]} 19... Rf7
{[%clk 0:03:05.7]} 20. Rad1 {[%clk 0:03:14.7]} 20... a5 {[%clk 0:02:59.3]} 21.
Ne1 {[%clk 0:03:15.7]} 21... Bf8 {[%clk 0:02:55.9]} 22. Bf3 {[%clk 0:03:14.9]}
22... Nd8 {[%clk 0:02:51.8]} 23. Bxb7 {[%clk 0:03:14.7]} 23... Nxb7 {[%clk
0:02:53.7]} 24. b3 {[%clk 0:03:15.7]} 24... Nc5 {[%clk 0:02:54.8]} 25. f3 {[%clk
0:03:12.8]} 25... a4 {[%clk 0:02:55.6]} 26. bxa4 {[%clk 0:03:08.4]} 26... Rxa4
{[%clk 0:02:55.8]} 27. Nd3 {[%clk 0:03:09.6]} 27... Nxd3 {[%clk 0:02:50.5]} 28.
Qxd3 {[%clk 0:03:10.4]} 28... Bc5+ {[%clk 0:02:51.6]} 29. Kg2 {[%clk 0:03:10.9]}
29... Ra7 {[%clk 0:02:52.3]} 30. h5 {[%clk 0:03:10.8]} 30... Qc6 {[%clk
0:02:53.2]} 31. Qe2 {[%clk 0:03:09.5]} 31... Rf8 {[%clk 0:02:53.7]} 32. Rd3
{[%clk 0:03:07.6]} 32... Rfa8 {[%clk 0:02:53.8]} 33. R1d2 {[%clk 0:03:07.9]}
33... Ra3 {[%clk 0:02:52]} 34. Rxa3 {[%clk 0:03:07.5]} 34... Rxa3 {[%clk
0:02:52.2]} 35. Rd3 {[%clk 0:03:08.5]} 35... Rc3 {[%clk 0:02:41.8]} 36. Qd2
{[%clk 0:03:01.2]} 36... Rxc4 {[%clk 0:02:38.6]} 37. Rxd7 {[%clk 0:02:59.2]}
37... Bd4 {[%clk 0:02:12.5]} 38. Rxd4 {[%clk 0:02:23.8]} 38... Rc2 {[%clk
0:02:11.9]} 39. Rxb4 {[%clk 0:02:24.5]} 39... Rxd2+ {[%clk 0:02:01.7]} 40. Bxd2
{[%clk 0:02:26.4]} 40... Qc2 {[%clk 0:02:02.9]} 41. Rd4 {[%clk 0:02:24.8]} 41...
Qxa2 {[%clk 0:02:03.9]} 42. g4 {[%clk 0:02:24.8]} 42... Qc2 {[%clk 0:01:58.5]}
43. Kg3 {[%clk 0:02:22.8]} 43... Kf7 {[%clk 0:01:54.4]} 44. g5 {[%clk
0:02:19.2]} 44... hxg5 {[%clk 0:01:49.8]} 45. Bxg5 {[%clk 0:02:21.1]} 45... Qc6
{[%clk 0:01:47.8]} 46. h6 {[%clk 0:02:12.3]} 46... gxh6 {[%clk 0:01:46.1]} 47.
Bxh6 {[%clk 0:02:13]} 47... Qb5 {[%clk 0:01:43]} 48. Bf4 {[%clk 0:02:11.7]}
48... Qf1 {[%clk 0:01:42.8]} 49. Rd2 {[%clk 0:02:08.8]} 49... Qg1+ {[%clk
0:01:42.1]} 50. Rg2 {[%clk 0:02:08.7]} 50... Qe1+ {[%clk 0:01:42.7]} 51. Kh3
{[%clk 0:02:07.6]} 51... Qf1 {[%clk 0:01:40.7]} 52. Kg3 {[%clk 0:02:08.5]} 52...
Qe1+ {[%clk 0:01:33.5]} 53. Kh3 {[%clk 0:02:09.3]} 53... Qc3 {[%clk 0:01:27.4]}
54. Kg3 {[%clk 0:02:09.6]} 54... Ke8 {[%clk 0:01:26.3]} 55. Rd2 {[%clk 0:02:08]}
55... Qa1 {[%clk 0:01:24]} 56. Kg2 {[%clk 0:02:02.2]} 56... Qa7 {[%clk 0:01:21]}
57. Rd6 {[%clk 0:02:00.3]} 57... Qg7+ {[%clk 0:01:20.4]} 58. Kf2 {[%clk
0:02:01.5]} 58... Qg6 {[%clk 0:01:20.1]} 59. Rd1 {[%clk 0:02:00.7]} 59... Qh5
{[%clk 0:01:16.8]} 60. Kg2 {[%clk 0:02:00.6]} 60... Qh4 {[%clk 0:01:17]} 61. Bg3
{[%clk 0:01:48.4]} 61... Qa4 {[%clk 0:01:14.3]} 62. Rd6 {[%clk 0:01:47.6]} 62...
Qa2+ {[%clk 0:01:09.7]} 63. Kh3 {[%clk 0:01:47]} 63... Kf7 {[%clk 0:01:10.9]}
64. Rd7+ {[%clk 0:01:41.8]} 64... Kg6 {[%clk 0:01:11.8]} 65. Rd6 {[%clk
0:01:41.9]} 65... f4 {[%clk 0:01:10.4]} 66. Bxf4 {[%clk 0:01:40.4]} 66... Kf5
{[%clk 0:01:11.2]} 67. Bg3 {[%clk 0:01:27.3]} 67... Qe2 {[%clk 0:01:11.7]} 68.
Rd8 {[%clk 0:01:24.8]} 68... Qf1+ {[%clk 0:01:11]} 69. Kh2 {[%clk 0:01:26.3]}
69... Qe2+ {[%clk 0:01:05.3]} 70. Kg1 {[%clk 0:01:24]} 70... Kg6 {[%clk
0:00:57.7]} 71. Rf8 {[%clk 0:01:22]} 71... Qa2 {[%clk 0:00:55.2]} 72. Rf6+
{[%clk 0:01:21.6]} 72... Kg5 {[%clk 0:00:56]} 73. Bf4+ {[%clk 0:01:20.4]} 1-0

[Event "*** Titled Tuesday 3|2 Blitz"]
[Site "Chess.com"]
[Date "2015.09.01"]
[Round "9"]
[White "xdb"]
[Black "Thomaslegend"]
[Result "0-1"]
[WhiteElo "2130"]
[BlackElo "2140"]
[TimeControl "180+2"]
[EndTime "12:51:34 PDT"]
[Termination "Thomaslegend won by resignation"]

1. e4 {[%clk 0:03:01.4]} 1... c5 {[%clk 0:03:00.7]} 2. Nf3 {[%clk 0:03:01.3]}
2... d6 {[%clk 0:03:02.1]} 3. d4 {[%clk 0:03:01.6]} 3... cxd4 {[%clk 0:03:04]}
4. Nxd4 {[%clk 0:03:03.3]} 4... Nf6 {[%clk 0:03:05.6]} 5. Nc3 {[%clk 0:03:03.7]}
5... a6 {[%clk 0:03:07.3]} 6. Be2 {[%clk 0:03:02.9]} 6... e5 {[%clk 0:03:08.3]}
7. Nb3 {[%clk 0:03:03.1]} 7... Be7 {[%clk 0:03:09.8]} 8. Be3 {[%clk 0:03:03.3]}
8... Be6 {[%clk 0:03:10.8]} 9. Nd5 {[%clk 0:03:03.1]} 9... Bxd5 {[%clk
0:02:50.3]} 10. exd5 {[%clk 0:02:58.4]} 10... Nbd7 {[%clk 0:02:49.2]} 11. c4
{[%clk 0:02:54.4]} 11... b6 {[%clk 0:02:44.6]} 12. O-O {[%clk 0:02:30.3]} 12...
O-O {[%clk 0:02:44.9]} 13. a4 {[%clk 0:02:29]} 13... a5 {[%clk 0:02:43.8]} 14.
Nd2 {[%clk 0:02:14.3]} 14... Nc5 {[%clk 0:02:39.4]} 15. Qb1 {[%clk 0:01:55.7]}
15... Nfd7 {[%clk 0:02:32.3]} 16. b4 {[%clk 0:01:55.6]} 16... axb4 {[%clk
0:02:28.3]} 17. Qxb4 {[%clk 0:01:57.5]} 17... Bg5 {[%clk 0:02:23.6]} 18. Rfb1
{[%clk 0:01:51.8]} 18... Bxe3 {[%clk 0:02:21.3]} 19. fxe3 {[%clk 0:01:53.7]}
19... Qg5 {[%clk 0:02:18.7]} 20. Nf1 {[%clk 0:01:45.9]} 20... f5 {[%clk
0:02:11.3]} 21. a5 {[%clk 0:01:46.3]} 21... bxa5 {[%clk 0:02:00.7]} 22. Rxa5
{[%clk 0:01:48.2]} 22... Rxa5 {[%clk 0:01:35.3]} 23. Qxa5 {[%clk 0:01:50.1]}
23... f4 {[%clk 0:01:22.5]} 24. exf4 {[%clk 0:01:36.2]} 24... Qxf4 {[%clk
0:01:17]} 25. Ng3 {[%clk 0:01:03.7]} 25... Qd4+ {[%clk 0:00:56.2]} 26. Kh1
{[%clk 0:01:01.8]} 26... Ne4 {[%clk 0:00:51.3]} 27. Nxe4 {[%clk 0:00:33.3]}
27... Qxe4 {[%clk 0:00:51.9]} 28. Qe1 {[%clk 0:00:31.9]} 28... Rf2 {[%clk
0:00:17.7]} 29. Qxf2 {[%clk 0:00:20.4]} 29... Qxb1+ {[%clk 0:00:18.4]} 30. Bf1
{[%clk 0:00:22]} 30... Nc5 {[%clk 0:00:12.7]} 31. Kg1 {[%clk 0:00:19.1]} 31...
Qe4 {[%clk 0:00:06.7]} 32. h3 {[%clk 0:00:17.9]} 32... Qd4 {[%clk 0:00:05]} 33.
Qxd4 {[%clk 0:00:13.6]} 33... exd4 {[%clk 0:00:06.9]} 34. Kf2 {[%clk 0:00:15]}
34... Kf7 {[%clk 0:00:08.1]} 35. g3 {[%clk 0:00:14.6]} 35... Kf6 {[%clk
0:00:09.3]} 36. h4 {[%clk 0:00:13.9]} 36... Ke5 {[%clk 0:00:09.1]} 37. Kf3
{[%clk 0:00:15.5]} 37... h6 {[%clk 0:00:06.4]} 38. Be2 {[%clk 0:00:10.8]} 38...
Nb3 {[%clk 0:00:07.1]} 39. Bd3 {[%clk 0:00:10.5]} 39... Nc5 {[%clk 0:00:08.3]}
40. Bg6 {[%clk 0:00:10.7]} 40... Na4 {[%clk 0:00:06.9]} 41. Bc2 {[%clk
0:00:09.7]} 41... Nb6 {[%clk 0:00:05.6]} 42. Bd3 {[%clk 0:00:10.6]} 42... Nd7
{[%clk 0:00:06.6]} 43. Bg6 {[%clk 0:00:10]} 43... Nc5 {[%clk 0:00:07.9]} 44. Bh7
{[%clk 0:00:09.5]} 44... Na6 {[%clk 0:00:08.5]} 45. Bg6 {[%clk 0:00:10.2]} 45...
Nc5 {[%clk 0:00:09.9]} 46. Bh7 {[%clk 0:00:11]} 46... Na4 {[%clk 0:00:11.1]} 47.
Bg6 {[%clk 0:00:11.3]} 47... Nb2 {[%clk 0:00:12.4]} 48. Bh7 {[%clk 0:00:10.7]}
48... Nxc4 {[%clk 0:00:13.6]} 49. Be4 {[%clk 0:00:06.9]} 49... Nb6 {[%clk
0:00:14.8]} 50. g4 {[%clk 0:00:06.8]} 50... Nxd5 {[%clk 0:00:15.7]} 0-1

[Event "*** Titled Tuesday 3|2 Blitz"]
[Site "Chess.com"]
[Date "2015.09.01"]
[Round "9"]
[White "Gabrinsky"]
[Black "enen0315"]
[Result "1-0"]
[WhiteElo "2198"]
[BlackElo "1955"]
[TimeControl "180+2"]
[EndTime "12:51:42 PDT"]
[Termination "Gabrinsky won by resignation"]

1. e4 {[%clk 0:03:01.9]} 1... c5 {[%clk 0:03:00.3]} 2. Nc3 {[%clk 0:03:01.9]}
2... g6 {[%clk 0:02:59.9]} 3. f4 {[%clk 0:03:02.8]} 3... Bg7 {[%clk 0:03:00.7]}
4. Nf3 {[%clk 0:03:04]} 4... Nc6 {[%clk 0:03:00.8]} 5. Bb5 {[%clk 0:03:04.7]}
5... Nd4 {[%clk 0:03:01.5]} 6. O-O {[%clk 0:03:04.5]} 6... a6 {[%clk 0:03:02]}
7. Bd3 {[%clk 0:03:04.7]} 7... d6 {[%clk 0:02:53.8]} 8. Nxd4 {[%clk 0:03:03.8]}
8... cxd4 {[%clk 0:02:54.4]} 9. Ne2 {[%clk 0:03:05]} 9... e5 {[%clk 0:02:46.3]}
10. c3 {[%clk 0:03:03.2]} 10... dxc3 {[%clk 0:02:45.5]} 11. dxc3 {[%clk
0:03:05.1]} 11... Nf6 {[%clk 0:02:41.1]} 12. Ng3 {[%clk 0:02:52]} 12... O-O
{[%clk 0:02:36.6]} 13. Qf3 {[%clk 0:02:45.8]} 13... b5 {[%clk 0:02:16.2]} 14.
Bc2 {[%clk 0:02:30.2]} 14... Bb7 {[%clk 0:02:14.1]} 15. Kh1 {[%clk 0:02:23.7]}
15... Rc8 {[%clk 0:02:05]} 16. fxe5 {[%clk 0:02:19.6]} 16... dxe5 {[%clk
0:02:01.1]} 17. Bg5 {[%clk 0:02:20.5]} 17... Rc6 {[%clk 0:01:57.1]} 18. Rad1
{[%clk 0:02:21]} 18... Qb6 {[%clk 0:01:55.8]} 19. Bb3 {[%clk 0:02:01.7]} 19...
a5 {[%clk 0:01:45.4]} 20. a3 {[%clk 0:01:43.9]} 20... h6 {[%clk 0:01:28]} 21.
Be3 {[%clk 0:01:42.8]} 21... Qa6 {[%clk 0:01:24.6]} 22. h4 {[%clk 0:01:31.8]}
22... Rc7 {[%clk 0:01:15.3]} 23. h5 {[%clk 0:01:13.6]} 23... g5 {[%clk
0:01:08.1]} 24. Bc2 {[%clk 0:01:05.2]} 24... Bc8 {[%clk 0:01:05.2]} 25. Nf5
{[%clk 0:00:52.6]} 25... Bxf5 {[%clk 0:01:02.8]} 26. Qxf5 {[%clk 0:00:48.7]}
26... Nxh5 {[%clk 0:00:57.7]} 27. Kh2 {[%clk 0:00:48.8]} 27... b4 {[%clk
0:00:52]} 28. Bd3 {[%clk 0:00:38]} 28... Qb7 {[%clk 0:00:39.9]} 29. axb4 {[%clk
0:00:38.7]} 29... axb4 {[%clk 0:00:40.5]} 30. c4 {[%clk 0:00:40.2]} 30... Nf4
{[%clk 0:00:39.5]} 31. Bxf4 {[%clk 0:00:37.7]} 31... exf4 {[%clk 0:00:39.4]} 32.
e5 {[%clk 0:00:36.1]} 32... Rd8 {[%clk 0:00:32.1]} 33. Be4 {[%clk 0:00:34.7]}
33... Qb8 {[%clk 0:00:32.2]} 34. Bd5 {[%clk 0:00:28]} 34... Re7 {[%clk
0:00:28.5]} 35. e6 {[%clk 0:00:24.5]} 35... f3+ {[%clk 0:00:23.9]} 36. g3 {[%clk
0:00:25.7]} 36... f6 {[%clk 0:00:19.1]} 37. Rxf3 {[%clk 0:00:22.2]} 37... Qe5
{[%clk 0:00:19.9]} 38. Qxe5 {[%clk 0:00:16.2]} 38... fxe5 {[%clk 0:00:21.2]} 39.
b3 {[%clk 0:00:18.1]} 39... Kh8 {[%clk 0:00:18.9]} 40. Re1 {[%clk 0:00:15.8]}
40... Rf8 {[%clk 0:00:16.1]} 41. Rxf8+ {[%clk 0:00:16]} 41... Bxf8 {[%clk
0:00:17.7]} 42. Kh3 {[%clk 0:00:17.2]} 42... Bg7 {[%clk 0:00:18.5]} 43. Kg4
{[%clk 0:00:18.6]} 43... Kg8 {[%clk 0:00:19.2]} 44. Kf5 {[%clk 0:00:19.7]} 44...
Kf8 {[%clk 0:00:18.9]} 45. g4 {[%clk 0:00:20.5]} 45... Ra7 {[%clk 0:00:19.4]}
46. Rf1 {[%clk 0:00:20.2]} 46... Ke7 {[%clk 0:00:20.5]} 47. Kg6 {[%clk
0:00:20.8]} 47... Kd6 {[%clk 0:00:20.7]} 48. Rf7 {[%clk 0:00:20.3]} 48... Rxf7
{[%clk 0:00:18.6]} 49. Kxf7 {[%clk 0:00:22.2]} 49... h5 {[%clk 0:00:12.5]} 50.
Kxg7 {[%clk 0:00:21]} 50... h4 {[%clk 0:00:13]} 51. Kf7 {[%clk 0:00:21.7]} 1-0

[Event "*** Titled Tuesday 3|2 Blitz"]
[Site "Chess.com"]
[Date "2015.09.01"]
[Round "9"]
[White "rhungaski"]
[Black "oggy1984"]
[Result "0-1"]
[WhiteElo "2465"]
[BlackElo "2435"]
[TimeControl "180+2"]
[EndTime "12:52:04 PDT"]
[Termination "oggy1984 won on time"]

1. Nf3 {[%clk 0:03:01.3]} 1... Nf6 {[%clk 0:02:59.8]} 2. c4 {[%clk 0:03:02.2]}
2... e6 {[%clk 0:02:56.4]} 3. g3 {[%clk 0:03:02.4]} 3... d5 {[%clk 0:02:52.2]}
4. Bg2 {[%clk 0:03:03.1]} 4... c5 {[%clk 0:02:46.2]} 5. O-O {[%clk 0:03:02.4]}
5... Nc6 {[%clk 0:02:44.1]} 6. b3 {[%clk 0:02:59.5]} 6... d4 {[%clk 0:02:42]} 7.
e3 {[%clk 0:03:00.1]} 7... Be7 {[%clk 0:02:37.8]} 8. exd4 {[%clk 0:03:00.8]}
8... cxd4 {[%clk 0:02:34.1]} 9. Re1 {[%clk 0:02:59.6]} 9... O-O {[%clk
0:02:29.4]} 10. d3 {[%clk 0:02:59.3]} 10... Nd7 {[%clk 0:02:27.8]} 11. Na3
{[%clk 0:02:57.5]} 11... e5 {[%clk 0:02:17]} 12. Nc2 {[%clk 0:02:56.3]} 12...
Bd6 {[%clk 0:02:15.1]} 13. a3 {[%clk 0:02:56.1]} 13... Re8 {[%clk 0:02:07.5]}
14. b4 {[%clk 0:02:52.7]} 14... h6 {[%clk 0:02:03.7]} 15. Rb1 {[%clk 0:02:37]}
15... a6 {[%clk 0:02:00]} 16. Nd2 {[%clk 0:02:31.3]} 16... Nf6 {[%clk
0:01:49.8]} 17. b5 {[%clk 0:02:20.1]} 17... axb5 {[%clk 0:01:46.6]} 18. Rxb5
{[%clk 0:02:22]} 18... Ne7 {[%clk 0:01:41.2]} 19. Nb4 {[%clk 0:02:18]} 19... Ra5
{[%clk 0:01:33.3]} 20. Rxa5 {[%clk 0:01:48.1]} 20... Qxa5 {[%clk 0:01:35.2]} 21.
Qb3 {[%clk 0:01:38.9]} 21... b6 {[%clk 0:01:21.6]} 22. Ne4 {[%clk 0:01:26.4]}
22... Nxe4 {[%clk 0:01:18.6]} 23. Bxe4 {[%clk 0:01:28.3]} 23... Be6 {[%clk
0:01:14.7]} 24. Qb2 {[%clk 0:01:16.5]} 24... b5 {[%clk 0:01:11.3]} 25. cxb5
{[%clk 0:00:59.9]} 25... Qxb5 {[%clk 0:01:13.2]} 26. Bd2 {[%clk 0:00:58.5]}
26... Rb8 {[%clk 0:01:11.4]} 27. Qc2 {[%clk 0:00:54.8]} 27... Qd7 {[%clk
0:01:01.8]} 28. Rb1 {[%clk 0:00:50.8]} 28... Rc8 {[%clk 0:00:59.6]} 29. Qd1
{[%clk 0:00:50.5]} 29... Bf5 {[%clk 0:00:58.1]} 30. Qf3 {[%clk 0:00:47.6]} 30...
Bg4 {[%clk 0:00:41.5]} 31. Qg2 {[%clk 0:00:46.4]} 31... Rc7 {[%clk 0:00:40.2]}
32. Qf1 {[%clk 0:00:41.4]} 32... f5 {[%clk 0:00:39.6]} 33. Bg2 {[%clk
0:00:40.3]} 33... Kh7 {[%clk 0:00:37.4]} 34. f4 {[%clk 0:00:39.2]} 34... Bxb4
{[%clk 0:00:34]} 35. axb4 {[%clk 0:00:37.2]} 35... Rc2 {[%clk 0:00:35.1]} 36.
Qe1 {[%clk 0:00:35.3]} 36... exf4 {[%clk 0:00:33.8]} 37. Bxf4 {[%clk 0:00:35]}
37... Nd5 {[%clk 0:00:33.8]} 38. Bd2 {[%clk 0:00:32.8]} 38... Ne3 {[%clk
0:00:32.3]} 39. Bxe3 {[%clk 0:00:30.7]} 39... dxe3 {[%clk 0:00:34.2]} 40. Qxe3
{[%clk 0:00:30.1]} 40... Re2 {[%clk 0:00:33.6]} 41. Qf4 {[%clk 0:00:16.6]} 41...
Qxd3 {[%clk 0:00:34]} 42. Rf1 {[%clk 0:00:17.3]} 42... Qc2 {[%clk 0:00:31.2]}
43. Rf2 {[%clk 0:00:16.3]} 43... Qb1+ {[%clk 0:00:27.9]} 44. Rf1 {[%clk
0:00:15.3]} 44... Qb2 {[%clk 0:00:28.3]} 45. Rf2 {[%clk 0:00:15.4]} 45... Qb1+
{[%clk 0:00:25.6]} 46. Rf1 {[%clk 0:00:16.3]} 46... Qa2 {[%clk 0:00:19.8]} 47.
Rf2 {[%clk 0:00:17.2]} 47... Qa7 {[%clk 0:00:13.6]} 48. h3 {[%clk 0:00:16.6]}
48... g5 {[%clk 0:00:12]} 49. Qc7+ {[%clk 0:00:04.3]} 49... Qxc7 {[%clk
0:00:11.8]} 0-1

[Event "*** Titled Tuesday 3|2 Blitz"]
[Site "Chess.com"]
[Date "2015.09.01"]
[Round "9"]
[White "Yaacovn"]
[Black "AleksandrNevski"]
[Result "1-0"]
[WhiteElo "2602"]
[BlackElo "2345"]
[TimeControl "180+2"]
[EndTime "12:52:30 PDT"]
[Termination "Yaacovn won on time"]

1. d4 {[%clk 0:02:56.7]} 1... d5 {[%clk 0:03:00]} 2. Nf3 {[%clk 0:02:57.8]} 2...
e6 {[%clk 0:03:00.9]} 3. c4 {[%clk 0:02:59.4]} 3... Be7 {[%clk 0:03:00.9]} 4.
Bf4 {[%clk 0:03:00.3]} 4... Nf6 {[%clk 0:03:01.3]} 5. e3 {[%clk 0:03:01.7]} 5...
O-O {[%clk 0:03:02.7]} 6. Nc3 {[%clk 0:03:02.4]} 6... Nbd7 {[%clk 0:03:04.2]} 7.
c5 {[%clk 0:03:03.6]} 7... c6 {[%clk 0:03:04.5]} 8. Bd3 {[%clk 0:03:04]} 8... b6
{[%clk 0:03:05.8]} 9. b4 {[%clk 0:03:05]} 9... a5 {[%clk 0:03:07]} 10. a3 {[%clk
0:03:06.3]} 10... Ba6 {[%clk 0:03:08.4]} 11. Bxa6 {[%clk 0:03:07.4]} 11... Rxa6
{[%clk 0:03:08.9]} 12. O-O {[%clk 0:03:08.6]} 12... Qa8 {[%clk 0:03:09.3]} 13.
Rb1 {[%clk 0:03:09.7]} 13... axb4 {[%clk 0:03:09.8]} 14. axb4 {[%clk 0:03:11.6]}
14... Qb7 {[%clk 0:03:11.1]} 15. Qc2 {[%clk 0:03:11.2]} 15... Rfa8 {[%clk
0:03:12.5]} 16. b5 {[%clk 0:03:07.7]} 16... Ra3 {[%clk 0:02:59.7]} 17. cxb6
{[%clk 0:02:43.7]} 17... Qxb6 {[%clk 0:02:34.7]} 18. Rfc1 {[%clk 0:02:34.6]}
18... h6 {[%clk 0:02:29.6]} 19. h3 {[%clk 0:02:27.9]} 19... c5 {[%clk
0:01:49.6]} 20. dxc5 {[%clk 0:02:08.2]} 20... Bxc5 {[%clk 0:01:48.6]} 21. Ne2
{[%clk 0:01:59.6]} 21... Ne4 {[%clk 0:01:41.7]} 22. Ned4 {[%clk 0:01:57.4]}
22... Ra2 {[%clk 0:01:10.4]} 23. Rb2 {[%clk 0:01:46.2]} 23... Rxb2 {[%clk
0:01:03.1]} 24. Qxb2 {[%clk 0:01:48.1]} 24... Ba3 {[%clk 0:01:02.6]} 25. Qa2
{[%clk 0:01:49.3]} 25... Ndc5 {[%clk 0:00:47.7]} 26. Rc2 {[%clk 0:01:37]} 26...
Ra4 {[%clk 0:00:44.3]} 27. Qb1 {[%clk 0:01:28.6]} 27... Bb4 {[%clk 0:00:36.2]}
28. Ra2 {[%clk 0:01:26.8]} 28... Nc3 {[%clk 0:00:34.2]} 29. Rxa4 {[%clk
0:01:27.7]} 29... Nxb1 {[%clk 0:00:28.4]} 30. Rxb4 {[%clk 0:01:29]} 30... Nc3
{[%clk 0:00:28.2]} 31. Ne5 {[%clk 0:01:25.7]} 31... f6 {[%clk 0:00:26.1]} 32.
Nec6 {[%clk 0:01:19]} 32... e5 {[%clk 0:00:26.6]} 33. Bxe5 {[%clk 0:00:58.2]}
33... fxe5 {[%clk 0:00:26.8]} 34. Nxe5 {[%clk 0:01:00.1]} 34... Qa5 {[%clk
0:00:24.9]} 35. Nec6 {[%clk 0:00:59.7]} 35... Qb6 {[%clk 0:00:22.1]} 36. g3
{[%clk 0:00:57.1]} 36... N3e4 {[%clk 0:00:18.8]} 37. Rb1 {[%clk 0:00:56.3]}
37... Kh7 {[%clk 0:00:17.9]} 38. Ra1 {[%clk 0:00:57.2]} 38... Nd3 {[%clk
0:00:15.7]} 39. Ra2 {[%clk 0:00:55]} 39... Qc5 {[%clk 0:00:14.9]} 40. Rc2 {[%clk
0:00:55.4]} 40... Qf8 {[%clk 0:00:14.4]} 41. b6 {[%clk 0:00:54.7]} 41... Ndc5
{[%clk 0:00:09.8]} 42. Kg2 {[%clk 0:00:49.6]} 42... Nb7 {[%clk 0:00:08.7]} 43.
Ne5 {[%clk 0:00:47.6]} 43... Nec5 {[%clk 0:00:09]} 44. Rb2 {[%clk 0:00:46.6]}
44... Qf6 {[%clk 0:00:10]} 45. Nec6 {[%clk 0:00:46.4]} 45... Qg6 {[%clk
0:00:11.2]} 46. g4 {[%clk 0:00:46.3]} 46... Qe4+ {[%clk 0:00:12.2]} 47. Kg1
{[%clk 0:00:47.8]} 47... Nd3 {[%clk 0:00:13.2]} 48. Rb1 {[%clk 0:00:43.7]} 48...
Ne5 {[%clk 0:00:13.9]} 49. Rb2 {[%clk 0:00:39.7]} 49... Nc4 {[%clk 0:00:14.1]}
50. Rb4 {[%clk 0:00:38.2]} 50... Nd2 {[%clk 0:00:14]} 51. Nf5 {[%clk 0:00:38.9]}
51... Nf3+ {[%clk 0:00:13.6]} 52. Kg2 {[%clk 0:00:39.3]} 52... Nh4+ {[%clk
0:00:13.4]} 53. Kf1 {[%clk 0:00:36.2]} 53... Qd3+ {[%clk 0:00:14.7]} 54. Kg1
{[%clk 0:00:36.8]} 54... Qd1+ {[%clk 0:00:13.3]} 55. Kh2 {[%clk 0:00:37.5]}
55... Nf3+ {[%clk 0:00:11.6]} 56. Kg3 {[%clk 0:00:38.6]} 56... Ng5 {[%clk
0:00:11.7]} 57. Ncd4 {[%clk 0:00:36.2]} 57... Ne4+ {[%clk 0:00:08.5]} 58. Kf4
{[%clk 0:00:32.5]} 58... Nxf2 {[%clk 0:00:09.3]} 59. Rb3 {[%clk 0:00:28.7]}
59... Nxh3+ {[%clk 0:00:08.3]} 60. Ke5 {[%clk 0:00:29.6]} 60... Qxg4 {[%clk
0:00:09.4]} 61. Kxd5 {[%clk 0:00:29]} 61... Ng5 {[%clk 0:00:10]} 62. Kc6 {[%clk
0:00:30.1]} 62... Qe4+ {[%clk 0:00:10.4]} 63. Kc7 {[%clk 0:00:30.7]} 63... Nc5
{[%clk 0:00:10.1]} 64. Rb5 {[%clk 0:00:31.6]} 64... Nge6+ {[%clk 0:00:09.4]} 65.
Kd6 {[%clk 0:00:32.1]} 65... Nxd4 {[%clk 0:00:05.3]} 66. exd4 {[%clk 0:00:31]}
66... Nb7+ {[%clk 0:00:05.1]} 67. Kc7 {[%clk 0:00:32.5]} 1-0